[Event "Berliner IM-Turnier 2025"]
[Site "Berlin"]
[Date "2025.03.02"]
[Round "9.6"]
[White "Yatskar, Martin"]
[Black "Zobel, Christian"]
[Result "1-0"]
[Annotator "ChessBase"]
[ECO "E32"]
[WhiteElo "2157"]
[BlackElo "2188"]
[PlyCount "77"]
[EventDate "2025.02.23"]
[EventType "tourn"]
[EventCountry "GER"]
[SourceTitle "playchess.com"]
[Source "ChessBase"]
[SourceQuality "1"]
[TimeControl "40/5400+30:1800+30"]

1. d4 {[%emt 0:06:23]} Nf6 {[%emt 0:00:13]} 2. c4 {[%emt 0:00:22]} e6 {[%emt 0:00:06]} 3. Nc3 {[%emt 0:00:07]} Bb4 {[%emt 0:00:08]} 4. Qc2 {[%emt 0:00:07]} O-O {[%emt 0:01:42]} 5. e4 {[%emt 0:00:04]} c5 {[%emt 0:05:28]} 6. e5 {[%emt 0:00:13]} cxd4 {[%emt 0:02:32]} 7. a3 {[%emt 0:00:04]} dxc3 {[%emt 0:03:16]} 8. axb4 {[%emt 0:01:08]} Ng4 {[%emt 0:05:28]} 9. Qxc3 {[%emt 0:01:44]} d6 {[%emt 0:01:04]} 10. exd6 {[%emt 0:09:49]} Qxd6 {[%emt 0:00:16]} 11. c5 {[%emt 0:01:11]} Qc7 {[%emt 0:04:27]} 12. Nf3 {[%emt 0:03:41]} e5 {[%emt 0:07:49]} 13. h3 {[%emt 0:01:11]} Nf6 {[%emt 0:00:09]} 14. Bc4 {[%emt 0:01:14]} Bf5 {[%emt 0:08:24]} 15. O-O {[%emt 0:00:09]} Nbd7 {[%emt 0:00:29]} 16. Re1 {[%emt 0:03:20]} Rfe8 {[%emt 0:06:30]} 17. Bg5 {[%emt 0:09:15]} a6 {[%emt 0:08:17]} 18. Re3 {[%emt 0:08:11]} e4 {[%emt 0:03:47]} 19. Nh4 {[%emt 0:01:48]} Be6 {[%emt 0:02:38]} 20. Bxf6 {[%emt 0:07:43]} Nxf6 {[%emt 0:00:58]} 21. Bxe6 {[%emt 0:01:44]} Rxe6 {[%emt 0:00:27]} 22. Nf5 {[%emt 0:01:47]} Qf4 {[%emt 0:03:44]} 23. Nd4 {[%emt 0:00:31]} Ree8 {[%emt 0:00:58]} 24. Ne2 {[%emt 0:02:02]} Qh6 {[%emt 0:08:25]} 25. Qc4 {[%emt 0:00:32]} Rad8 {[%emt 0:02:00]} 26. Nc3 {[%emt 0:00:25]} Qf4 {[%emt 0:08:13]} 27. Rae1 {[%emt 0:00:44]} Rd2 {[%emt 0:00:49]} 28. R1e2 {[%emt 0:02:29]} Rxe2 {[%emt 0:01:15]} 29. Qxe2 {[%emt 0:00:22]} Qe5 {[%emt 0:01:25]} 30. Qd2 {[%emt 0:01:08]} Qb8 {[%emt 0:07:15]} 31. Qe1 {[%emt 0:00:31]} Qe5 {[%emt 0:00:20]} 32. Qd2 {[%emt 0:01:04]} Qb8 {[%emt 0:00:04]} 33. g3 {[%emt 0:03:22]} h6 {[%emt 0:00:56]} 34. Qd4 {[%emt 0:02:59]} Qe5 {[%emt 0:04:32]} 35. Qxe5 {[%emt 0:01:18]} Rxe5 {[%emt 0:00:01]} 36. f3 {[%emt 0:00:25]} Nd5 {[%emt 0:00:26]} 37. Rxe4 {[%emt 0:00:44]} Rxe4 {[%emt 0:00:28]} 38. Nxe4 {[%emt 0:00:05]} b5 {[%emt 0:00:59]} 39. cxb6 {[%emt 0:01:51]} 1-0

[Event "Berliner IM-Turnier 2025"]
[Site "Berlin"]
[Date "2025.03.02"]
[Round "9.7"]
[White "Noeldner, Julian"]
[Black "Ahmadinia, Ebrahim"]
[Result "1/2-1/2"]
[Annotator "ChessBase"]
[ECO "C47"]
[WhiteElo "2233"]
[BlackElo "2404"]
[PlyCount "48"]
[EventDate "2025.02.23"]
[EventType "tourn"]
[EventCountry "GER"]
[SourceTitle "playchess.com"]
[Source "ChessBase"]
[SourceQuality "1"]
[TimeControl "40/5400+30:1800+30"]

1. e4 {[%emt 0:00:07]} e5 {[%emt 0:04:07]} 2. Nf3 {[%emt 0:00:09]} Nc6 {[%emt 0:00:20]} 3. Nc3 {[%emt 0:00:07]} Nf6 {[%emt 0:00:51]} 4. d4 {[%emt 0:00:06]} exd4 {[%emt 0:00:25]} 5. Nxd4 {[%emt 0:00:06]} Bb4 {[%emt 0:00:32]} 6. Nxc6 {[%emt 0:00:06]} bxc6 {[%emt 0:00:06]} 7. Bd3 {[%emt 0:00:06]} O-O {[%emt 0:01:07]} 8. O-O {[%emt 0:00:06]} d5 {[%emt 0:01:16]} 9. exd5 {[%emt 0:00:06]} cxd5 {[%emt 0:00:06]} 10. h3 {[%emt 0:00:06]} Be6 {[%emt 0:06:04]} 11. Qf3 {[%emt 0:00:09]} h6 {[%emt 0:12:51]} 12. Bf4 {[%emt 0:10:23]} Bd6 {[%emt 0:00:14]} 13. Nb5 {[%emt 0:06:30]} Bxf4 {[%emt 0:00:31]} 14. Qxf4 {[%emt 0:00:05]} c5 {[%emt 0:03:33]} 15. c4 {[%emt 0:15:13]} dxc4 {[%emt 0:20:31]} 16. Bxc4 {[%emt 0:00:17]} Qb8 {[%emt 0:05:48]} 17. Qxb8 {[%emt 0:14:46]} Raxb8 {[%emt 0:00:35]} 18. Bxe6 {[%emt 0:00:22]} fxe6 {[%emt 0:04:03]} 19. Nxa7 {[%emt 0:00:33]} Rxb2 {[%emt 0:01:22]} 20. Nc6 {[%emt 0:04:27]} Nd5 {[%emt 0:14:45]} 21. Rac1 {[%emt 0:07:42]} Ra8 {[%emt 0:06:01]} 22. Rxc5 {[%emt 0:05:09]} Raxa2 {[%emt 0:00:17]} 23. Ra5 {[%emt 0:00:18]} Rxa5 {[%emt 0:01:02]} 24. Nxa5 {[%emt 0:00:17]} Kf7 {[%emt 0:01:01]} 1/2-1/2

[Event "Berliner IM-Turnier 2025"]
[Site "Berlin"]
[Date "2025.03.02"]
[Round "9.8"]
[White "Schulze, Lara"]
[Black "Moritz, Aron"]
[Result "1/2-1/2"]
[Annotator "ChessBase"]
[ECO "B07"]
[WhiteElo "2266"]
[BlackElo "2276"]
[PlyCount "90"]
[EventDate "2025.02.23"]
[EventType "tourn"]
[EventCountry "GER"]
[SourceTitle "playchess.com"]
[Source "ChessBase"]
[SourceQuality "1"]
[TimeControl "40/5400+30:1800+30"]

1. e4 {[%emt 0:00:01]} d6 {[%emt 0:00:09]} 2. d4 {[%emt 0:00:08]} Nf6 {[%emt 0:00:09]} 3. Nc3 {[%emt 0:00:06]} e5 {[%emt 0:00:20]} 4. Nge2 {[%emt 0:02:07]} c6 {[%emt 0:01:21]} 5. a4 {[%emt 0:02:30]} Be7 {[%emt 0:01:50]} 6. g3 {[%emt 0:09:57]} Nbd7 {[%emt 0:04:33]} 7. Bg2 {[%emt 0:00:37]} b6 {[%emt 0:00:50]} 8. O-O {[%emt 0:01:02]} a6 {[%emt 0:01:39]} 9. h3 {[%emt 0:01:39]} h5 {[%emt 0:01:32]} 10. Be3 {[%emt 0:09:13]} Bb7 {[%emt 0:00:57]} 11. Qd2 {[%emt 0:01:37]} O-O {[%emt 0:08:32]} 12. f4 {[%emt 0:03:53]} b5 {[%emt 0:01:38]} 13. b4 {[%emt 0:11:18]} Nb6 {[%emt 0:12:34]} 14. Qd3 {[%emt 0:00:56]} Nc4 {[%emt 0:03:28]} 15. Bf2 {[%emt 0:00:54]} Qd7 {[%emt 0:05:47]} 16. Nd1 {[%emt 0:02:59]} Rfe8 {[%emt 0:09:33]} 17. c3 {[%emt 0:10:21]} Bf8 {[%emt 0:01:28]} 18. Be1 {[%emt 0:08:27]} Qe7 {[%emt 0:12:40]} 19. Nf2 {[%emt 0:04:22]} Nb2 {[%emt 0:02:37]} 20. Qf3 {[%emt 0:00:54]} Nxa4 {[%emt 0:00:34]} 21. g4 {[%emt 0:01:53]} hxg4 {[%emt 0:00:54]} 22. hxg4 {[%emt 0:00:17]} exf4 {[%emt 0:00:57]} 23. Qxf4 {[%emt 0:01:52]} Nh7 {[%emt 0:08:30]} 24. Nd3 {[%emt 0:03:59]} g6 {[%emt 0:04:18]} 25. Ng3 {[%emt 0:02:36]} Bg7 {[%emt 0:00:12]} 26. e5 {[%emt 0:01:38]} Rad8 {[%emt 0:07:31]} 27. Ra2 {[%emt 0:03:13]} Rd7 {[%emt 0:04:21]} 28. Re2 {[%emt 0:04:59]} Qg5 {[%emt 0:00:13]} 29. exd6 {[%emt 0:05:11]} Rxe2 {[%emt 0:00:22]} 30. Nxe2 {[%emt 0:00:11]} Qxf4 {[%emt 0:00:08]} 31. Rxf4 {[%emt 0:01:11]} Rxd6 {[%emt 0:00:09]} 32. Re4 {[%emt 0:00:41]} Nf6 {[%emt 0:02:44]} 33. Re3 {[%emt 0:03:07]} Kf8 {[%emt 0:02:12]} 34. Bg3 {[%emt 0:01:21]} Rd8 {[%emt 0:00:11]} 35. Ne5 {[%emt 0:00:45]} Rc8 {[%emt 0:02:28]} 36. Rf3 {[%emt 0:00:41]} Kg8 {[%emt 0:00:28]} 37. Bh4 {[%emt 0:01:10]} Nd5 {[%emt 0:00:17]} 38. Rxf7 {[%emt 0:00:29]} Bxe5 {[%emt 0:00:48]} 39. Rxb7 {[%emt 0:00:06]} Bg7 {[%emt 0:00:33]} 40. Be1 {[%emt 0:01:02]} Re8 {[%emt 0:00:28]} 41. Bxd5+ {[%emt 0:03:20]} cxd5 {[%emt 0:00:04]} 42. Kf1 {[%emt 0:00:10]} Rf8+ {[%emt 0:08:07]} 43. Kg2 {[%emt 0:02:06]} Re8 {[%emt 0:00:09]} 44. Kf1 {[%emt 0:00:05]} Rf8+ {[%emt 0:00:05]} 45. Kg2 {[%emt 0:00:41]} Re8 {[%emt 0:00:22]} 1/2-1/2

[Event "Berliner IM-Turnier 2025"]
[Site "Berlin"]
[Date "2025.03.02"]
[Round "9.9"]
[White "Jakubowski, Krzysztof"]
[Black "Muse, Drazen"]
[Result "1-0"]
[Annotator "ChessBase"]
[ECO "B00"]
[WhiteElo "2449"]
[BlackElo "2309"]
[PlyCount "171"]
[EventDate "2025.02.23"]
[EventType "tourn"]
[EventCountry "GER"]
[SourceTitle "playchess.com"]
[Source "ChessBase"]
[SourceQuality "1"]
[TimeControl "40/5400+30:1800+30"]

1. e4 {[%emt 0:00:02]} Nc6 {[%emt 0:16:26]} 2. Nf3 {[%emt 0:00:36]} d6 {[%emt 0:00:05]} 3. d4 {[%emt 0:00:08]} Nf6 {[%emt 0:00:04]} 4. Nc3 {[%emt 0:00:15]} g6 {[%emt 0:00:12]} 5. d5 {[%emt 0:04:10]} Ne5 {[%emt 0:01:59]} 6. Nxe5 {[%emt 0:01:40]} dxe5 {[%emt 0:00:05]} 7. Be3 {[%emt 0:00:10]} Bg7 {[%emt 0:01:01]} 8. f3 {[%emt 0:00:37]} O-O {[%emt 0:00:16]} 9. Qd2 {[%emt 0:00:51]} e6 {[%emt 0:00:20]} 10. O-O-O {[%emt 0:01:16]} exd5 {[%emt 0:00:19]} 11. exd5 {[%emt 0:00:08]} Ne8 {[%emt 0:00:46]} 12. h4 {[%emt 0:01:49]} Nd6 {[%emt 0:08:50]} 13. h5 {[%emt 0:11:32]} f5 {[%emt 0:01:51]} 14. hxg6 {[%emt 0:02:24]} hxg6 {[%emt 0:00:14]} 15. g4 {[%emt 0:08:58]} fxg4 {[%emt 0:10:22]} 16. Ne4 {[%emt 0:08:26]} Rxf3 {[%emt 0:03:24]} 17. Ng5 {[%emt 0:00:19]} Bf5 {[%emt 0:02:39]} 18. Ne6 {[%emt 0:12:22]} Bxe6 {[%emt 0:01:46]} 19. dxe6 {[%emt 0:00:15]} Qf6 {[%emt 0:01:11]} 20. Be2 {[%emt 0:05:11]} e4 {[%emt 0:02:49]} 21. c3 {[%emt 0:00:10]} Qxe6 {[%emt 0:10:33]} 22. Bd4 {[%emt 0:02:42]} Bxd4 {[%emt 0:04:41]} 23. Qxd4 {[%emt 0:00:34]} Qf6 {[%emt 0:00:07]} 24. Qc5 {[%emt 0:03:44]} Qf7 {[%emt 0:04:22]} 25. Rh4 {[%emt 0:05:32]} Rf5 {[%emt 0:14:20]} 26. Qe3 {[%emt 0:04:05]} Qg7 {[%emt 0:04:38]} 27. Bxg4 {[%emt 0:05:03]} Raf8 {[%emt 0:03:43]} 28. Qh3 {[%emt 0:00:29]} Rf3 {[%emt 0:04:57]} 29. Bxf3 {[%emt 0:01:56]} Rxf3 {[%emt 0:00:09]} 30. Qg2 {[%emt 0:03:45]} Qf6 {[%emt 0:01:37]} 31. Rg4 {[%emt 0:00:13]} Kf7 {[%emt 0:00:52]} 32. Rg1 {[%emt 0:04:10]} Ke7 {[%emt 0:00:21]} 33. Rxg6 {[%emt 0:01:09]} Qf4+ {[%emt 0:00:05]} 34. Kb1 {[%emt 0:00:19]} Kd7 {[%emt 0:00:06]} 35. Rd1 {[%emt 0:07:20]} Rf2 {[%emt 0:01:20]} 36. Qh3+ {[%emt 0:00:57]} Qf5 {[%emt 0:00:29]} 37. Rg7+ {[%emt 0:02:34]} Kc6 {[%emt 0:00:06]} 38. Qxf5 {[%emt 0:00:21]} Rxf5 {[%emt 0:00:05]} 39. Rd2 {[%emt 0:00:25]} a5 {[%emt 0:00:10]} 40. a4 {[%emt 0:00:15]} Rf6 {[%emt 0:01:34]} 41. Re7 {[%emt 0:31:56]} b6 {[%emt 0:02:30]} 42. Rg2 {[%emt 0:00:00]} Rf7 {[%emt 0:01:09]} 43. Rxf7 {[%emt 0:00:00]} Nxf7 {[%emt 0:00:11]} 44. Rg7 {[%emt 0:00:00]} Ne5 {[%emt 0:00:20]} 45. Kc2 {[%emt 0:00:00]} Kd6 {[%emt 0:00:16]} 46. b3 {[%emt 0:00:00]} Nd7 {[%emt 0:02:44]} 47. Rg6+ {[%emt 0:00:00]} Kd5 {[%emt 0:00:10]} 48. Rg5+ {[%emt 0:00:00]} Kd6 {[%emt 0:00:15]} 49. Rg6+ {[%emt 0:00:00]} Kd5 {[%emt 0:00:32]} 50. Rg5+ {[%emt 0:00:00]} Kd6 {[%emt 0:02:52]} 51. b4 {[%emt 0:00:00]} Ne5 {[%emt 0:00:37]} 52. bxa5 {[%emt 0:00:00]} bxa5 {[%emt 0:01:37]} 53. Rg8 {[%emt 0:00:00]} Nc4 {[%emt 0:01:23]} 54. Rd8+ {[%emt 0:00:00]} Ke5 {[%emt 0:02:37]} 55. Rc8 {[%emt 0:00:00]} Kd6 {[%emt 0:00:22]} 56. Rd8+ {[%emt 0:01:19]} Ke5 {[%emt 0:00:43]} 57. Kb3 {[%emt 0:01:31]} Nd6 {[%emt 0:01:52]} 58. Rd7 {[%emt 0:01:12]} c6 {[%emt 0:03:53]} 59. Rh7 {[%emt 0:03:56]} Kf4 {[%emt 0:01:15]} 60. Rh6 {[%emt 0:00:26]} Ke5 {[%emt 0:00:18]} 61. Kc2 {[%emt 0:00:25]} c5 {[%emt 0:00:50]} 62. Rh5+ {[%emt 0:00:44]} Nf5 {[%emt 0:00:09]} 63. Kd2 {[%emt 0:00:45]} Kf4 {[%emt 0:03:55]} 64. Rh8 {[%emt 0:00:05]} Nd6 {[%emt 0:01:12]} 65. Ra8 {[%emt 0:02:09]} Ke5 {[%emt 0:01:32]} 66. Ke2 {[%emt 0:00:11]} Nc4 {[%emt 0:00:08]} 67. Ra7 {[%emt 0:00:12]} Kd5 {[%emt 0:01:05]} 68. Kf2 {[%emt 0:00:35]} Kd6 {[%emt 0:03:24]} 69. Ra6+ {[%emt 0:00:12]} Kd5 {[%emt 0:00:13]} 70. Ra8 {[%emt 0:00:49]} Kd6 {[%emt 0:00:28]} 71. Rb8 {[%emt 0:00:32]} Kd5 {[%emt 0:00:49]} 72. Rb5 {[%emt 0:00:41]} Kd6 {[%emt 0:00:24]} 73. Kg3 {[%emt 0:01:10]} Kc6 {[%emt 0:02:10]} 74. Kf4 {[%emt 0:00:24]} Kd5 {[%emt 0:00:46]} 75. Rb8 {[%emt 0:00:22]} Nd6 {[%emt 0:01:19]} 76. Rd8 {[%emt 0:00:14]} Kc6 {[%emt 0:01:22]} 77. Ra8 {[%emt 0:00:23]} Nc4 {[%emt 0:01:32]} 78. Kxe4 {[%emt 0:01:22]} Kb7 {[%emt 0:00:04]} 79. Rh8 {[%emt 0:00:08]} Nb6 {[%emt 0:00:18]} 80. Rh7+ {[%emt 0:00:16]} Kb8 {[%emt 0:00:03]} 81. Kd3 {[%emt 0:00:39]} Nxa4 {[%emt 0:00:36]} 82. Kc4 {[%emt 0:00:06]} Ka8 {[%emt 0:00:20]} 83. Rh3 {[%emt 0:00:15]} Kb7 {[%emt 0:00:51]} 84. Kb5 {[%emt 0:00:07]} Nb2 {[%emt 0:00:05]} 85. Rh7+ {[%emt 0:00:23]} Kc8 {[%emt 0:00:08]} 86. Kxa5 {[%emt 0:00:09]} 1-0

[Event "Berliner IM-Turnier 2025"]
[Site "Berlin"]
[Date "2025.03.02"]
[Round "9.10"]
[White "Poltorak, Sebastian"]
[Black "Florstedt, Johannes"]
[Result "1/2-1/2"]
[Annotator "ChessBase"]
[ECO "D85"]
[WhiteElo "2407"]
[BlackElo "2349"]
[PlyCount "28"]
[EventDate "2025.02.23"]
[EventType "tourn"]
[EventCountry "GER"]
[SourceTitle "playchess.com"]
[Source "ChessBase"]
[SourceQuality "1"]
[TimeControl "40/5400+30:1800+30"]

1. d4 {[%emt 0:00:04]} Nf6 {[%emt 0:02:44]} 2. c4 {[%emt 0:00:10]} g6 {[%emt 0:00:04]} 3. Nc3 {[%emt 0:00:29]} d5 {[%emt 0:00:11]} 4. Nf3 {[%emt 0:00:35]} Bg7 {[%emt 0:00:11]} 5. cxd5 {[%emt 0:00:40]} Nxd5 {[%emt 0:00:17]} 6. e4 {[%emt 0:00:05]} Nxc3 {[%emt 0:00:10]} 7. bxc3 {[%emt 0:00:03]} c5 {[%emt 0:00:49]} 8. Be3 {[%emt 0:01:19]} Qa5 {[%emt 0:04:41]} 9. Nd2 {[%emt 0:00:21]} O-O {[%emt 0:06:01]} 10. Nb3 {[%emt 0:00:22]} Qxc3+ {[%emt 0:00:38]} 11. Bd2 {[%emt 0:00:05]} Qb2 {[%emt 0:00:14]} 12. Bc1 {[%emt 0:00:07]} Qc3+ {[%emt 0:00:08]} 13. Bd2 {[%emt 0:00:06]} Qb2 {[%emt 0:00:10]} 14. Bc1 {[%emt 0:00:10]} Qc3+ {[%emt 0:00:10]} 1/2-1/2